{"text_format":"3","workbook":"xlsx","n_sheets":4,"sheets":["Summary","First Year","Second Year","Third Year"],"not_rendered":{"images":1},"read":"whole","date_system":"1900"}

{"sheet":"Summary","index":0,"n_rows":26,"n_cols":4,"rows_kept":26,"merged":[[7,2,7,3],[8,2,8,3],[9,1,10,1],[9,2,10,3],[11,1,11,3],[19,1,22,1]]}
[]
[]
[{"$nulls":3},"ANNEXURE B"]
[]
[]
[]
[]
[null,"SCM /Tender Ref #: ","BID NO.:  DMV /BID/ 02 /2025/26"]
[null,"Request for proposals for: ","APPOINTMENT OF A SERVICE PROVIDER TO RENDER PHYSICAL SECURITY SERVICES TO THE DEPARTMENT OF MILITARY VETERAN (DMV) HEAD OFFICE FOR A PERIOD OF THIRTY SIX (36) MONTHS"]
[null,"Name of Bidder"]
[]
[null,"ANNEXURE B: PRICING INFORMATION"]
[null,"Description","% Increment","Total cost (VAT Incl) "]
[null," Year 1 ",null,{"$f":"'First Year'!G22","v":{"v":0,"d":"R 0.00"}}]
[null," Year 2",null,{"$f":"'Second Year'!G22","v":{"v":0,"d":"R 0.00"}}]
[null," Year 3",null,{"$f":"'Third Year'!H22","v":{"v":0,"d":"R 0.00"}}]
[null,"TOTAL BID PRICE incl. VAT and all expenses FOR ALL THREE YEARS",null,{"$f":"SUM(D14:D16)","v":{"v":0,"d":"R 0.00"}}]
[]
[null,"Confirmation by Bidder"]
[null,"Signature:"]
[]
[]
[]
[null,"Name: "]
[null,"Designation:"]
[null,"Date:"]

{"sheet":"First Year","index":1,"n_rows":22,"n_cols":7,"rows_kept":22,"merged":[[1,2,1,6],[2,2,3,2],[2,3,3,6],[4,2,4,6],[5,1,11,1],[13,1,16,1]]}
[]
[null,null,"Estimated Bid Price"]
[null,null,"Name of Bidder"]
[]
[null,null,"First Year of Service"]
[null,"Monday to Friday","NUMBER OF SECURITY OFFICERS WORKING DAY SHIFT: MONDAY TO FRIDAY","UNARMED SECURITY BY GRADE","QUANTITY REQUIRED","RATE PER SECURITY GRADE (Excl VAT)/MONTH","COST BY GRADE (Excl VAT)"]
[null,null,"Site Supervisor","B",1,null,{"$f":"E7*F7","v":{"v":0,"d":"R 0.00"}}]
[null,null,"Security Officers at the Vehicle Entrance/ Exit","C",3,null,{"$f":"E8*F8","v":{"v":0,"d":"R 0.00"}}]
[null,null,"Security Officers at Reception","C",2,null,{"$f":"E9*F9","v":{"v":0,"d":"R 0.00"}}]
[null,null,"Security Officers at Basement","C",2,null,{"$f":"E10*F10","v":{"v":0,"d":"R 0.00"}}]
[null,null,"NUMBER FOR SECURITY OFFICERS WORKING NIGHT SHIFT: MODAY TO FRIDAY","UNARMED NIGHT GUARDS"]
[null,null,"Security Officers","C",3,null,{"$f":"E12*F12","v":{"v":0,"d":"R 0.00"}}]
[]
[null,"Public Holidays and Weekends","NUMBER FOR SECURITY OFFICERS WORKING WEEKENDS AND PUBLIC HOLIDAYS","UNARMED DAY GUARDS"]
[null,null,"Security Officers","C",3,null,{"$f":"E15*F15","v":{"v":0,"d":"R 0.00"}}]
[null,null,"NUMBER FOR SECURITY OFFICERS WORKING WEEKENDS AND PUBLIC HOLIDAYS.","UNARMED NIGHT GUARDS"]
[null,null,"Security Officers","C",3,null,{"$f":"E17*F17","v":{"v":0,"d":"R 0.00"}}]
[]
[null,null,"TOTAL REQUIRED",null,{"$f":"SUM(E7:E17)","v":17},null,{"$f":"SUM(G7:G17)","v":{"v":0,"d":"R 0.00"}}]
[null,null,"15% VAT",{"$nulls":3},{"$f":"G19*0.15","v":{"v":0,"d":"R 0.00"}}]
[null,null,"TOTAL (VAT INCL)",{"$nulls":3},{"$f":"G19+G20","v":{"v":0,"d":"R 0.00"}}]
[null,null,"ANNUAL AMOUT",{"$nulls":3},{"$f":"G21*12","v":{"v":0,"d":"R 0.00"}}]

{"sheet":"Second Year","index":2,"n_rows":22,"n_cols":7,"rows_kept":22,"merged":[[1,2,1,6],[2,2,3,2],[2,3,3,6],[4,2,4,6],[5,1,11,1],[13,1,16,1]]}
[]
[null,null,"Estimated Bid Price"]
[null,null,"Name of Bidder"]
[]
[null,null,"Second Year of Service"]
[null,"Monday to Friday","NUMBER OF SECURITY OFFICERS WORKING DAY SHIFT: MONDAY TO FRIDAY","UNARMED SECURITY BY GRADE","QUANTITY REQUIRED","RATE PER SECURITY GRADE (Excl VAT)/MONTH","COST BY GRADE (Excl VAT)"]
[null,null,"Site Supervisor","B",1,null,{"$f":"E7*F7","v":{"v":0,"d":"R 0.00"}}]
[null,null,"Security Officers at the Vehicle Entrance/ Exit","C",3,null,{"$f":"E8*F8","v":{"v":0,"d":"R 0.00"}}]
[null,null,"Security Officers at Reception","C",2,null,{"v":0,"d":"R 0.00"}]
[null,null,"Security Officers at Basement","C",2,null,{"v":0,"d":"R 0.00"}]
[null,null,"NUMBER FOR SECURITY OFFICERS WORKING NIGHT SHIFT: MODAY TO FRIDAY","UNARMED NIGHT GUARDS"]
[null,null,"Security Officers","C",3,null,{"$f":"E12*F12","v":{"v":0,"d":"R 0.00"}}]
[]
[null,"Public Holidays and Weekends","NUMBER FOR SECURITY OFFICERS WORKING WEEKENDS AND PUBLIC HOLIDAYS","UNARMED DAY GUARDS"]
[null,null,"Security Officers","C",3,null,{"$f":"E15*F15","v":{"v":0,"d":"R 0.00"}}]
[null,null,"NUMBER FOR SECURITY OFFICERS WORKING WEEKENDS AND PUBLIC HOLIDAYS.","UNARMED NIGHT GUARDS"]
[null,null,"Security Officers","C",3,null,{"$f":"E17*F17","v":{"v":0,"d":"R 0.00"}}]
[]
[null,null,"TOTAL REQUIRED",null,{"$f":"SUM(E7:E17)","v":17},null,{"$f":"SUM(G7:G17)","v":{"v":0,"d":"R 0.00"}}]
[null,null,"15% VAT",{"$nulls":3},{"$f":"G19*0.15","v":{"v":0,"d":"R 0.00"}}]
[null,null,"TOTAL (VAT INCL)",{"$nulls":3},{"$f":"G19+G20","v":{"v":0,"d":"R 0.00"}}]
[null,null,"ANNUAL AMOUT",{"$nulls":3},{"$f":"G21*12","v":{"v":0,"d":"R 0.00"}}]

{"sheet":"Third Year","index":3,"n_rows":22,"n_cols":8,"rows_kept":22,"merged":[[1,2,1,6],[2,3,3,3],[2,4,3,7],[4,3,4,7],[5,2,11,2],[13,2,16,2]]}
[]
[null,null,"Estimated Bid Price"]
[{"$nulls":3},"Name of Bidder"]
[]
[{"$nulls":3},"Third Year of Service"]
[null,null,"Monday to Friday","NUMBER OF SECURITY OFFICERS WORKING DAY SHIFT: MONDAY TO FRIDAY","UNARMED SECURITY BY GRADE","RATE PER SECURITY GRADE (Excl VAT)/MONTH","RATE PER SECURITY GRADE (Excl VAT)","COST BY GRADE (Excl VAT)"]
[{"$nulls":3},"Site Supervisor","B",1,null,{"$f":"F7*G7","v":{"v":0,"d":"R 0.00"}}]
[{"$nulls":3},"Security Officers at the Vehicle Entrance/ Exit","C",3,null,{"$f":"F8*G8","v":{"v":0,"d":"R 0.00"}}]
[{"$nulls":3},"Security Officers at Reception","C",2,null,{"v":0,"d":"R 0.00"}]
[{"$nulls":3},"Security Officers at Basement","C",2,null,{"v":0,"d":"R 0.00"}]
[{"$nulls":3},"NUMBER FOR SECURITY OFFICERS WORKING NIGHT SHIFT: MODAY TO FRIDAY","UNARMED NIGHT GUARDS"]
[{"$nulls":3},"Security Officers","C",3,null,{"$f":"F12*G12","v":{"v":0,"d":"R 0.00"}}]
[]
[null,null,"Public Holidays and Weekends","NUMBER FOR SECURITY OFFICERS WORKING WEEKENDS AND PUBLIC HOLIDAYS","UNARMED DAY GUARDS"]
[{"$nulls":3},"Security Officers","C",3,null,{"$f":"F15*G15","v":{"v":0,"d":"R 0.00"}}]
[{"$nulls":3},"NUMBER FOR SECURITY OFFICERS WORKING WEEKENDS AND PUBLIC HOLIDAYS.","UNARMED NIGHT GUARDS"]
[{"$nulls":3},"Security Officers","C",3,null,{"$f":"F17*G17","v":{"v":0,"d":"R 0.00"}}]
[]
[{"$nulls":3},"TOTAL REQUIRED",null,{"$f":"SUM(F7:F17)","v":17},null,{"$f":"SUM(H7:H17)","v":{"v":0,"d":"R 0.00"}}]
[{"$nulls":3},"15% VAT",{"$nulls":3},{"$f":"H19*0.15","v":{"v":0,"d":"R 0.00"}}]
[{"$nulls":3},"TOTAL (VAT INCL)",{"$nulls":3},{"$f":"H19+H20","v":{"v":0,"d":"R 0.00"}}]
[{"$nulls":3},"ANNUAL AMOUT",{"$nulls":3},{"$f":"H21*12","v":{"v":0,"d":"R 0.00"}}]